{"text_format":"3","workbook":"xlsx","n_sheets":1,"sheets":["广州华立科技职业学院实训室分级自评表"],"read":"whole","date_system":"1900"}

{"sheet":"广州华立科技职业学院实训室分级自评表","index":0,"n_rows":50,"n_cols":4,"rows_kept":50,"merged":[[0,0,0,3],[1,0,1,3],[2,0,2,3],[3,0,3,3],[5,0,5,1],[16,0,16,1],[38,0,38,1],[47,0,47,1],[48,0,48,1],[49,0,49,4]]}
["附件5：广州华立科技职业学院实训室分级自评表"]
["所属部门（盖章）："]
["部门分管领导（签名）：                        实训室负责人（签名）："]
["实训室名称：                                实训室地点："]
["风险源","满足输入1","分值","备注"]
["每项计分",null,"25分"]
["存储易燃易爆化学品总量在5~20kg或5~20L；",null,{"$f":"B7*25","v":0}]
["存储一般危化品总量50~100kg或50~100L；",null,{"$f":"B8*25","v":0}]
["存储有毒、易燃气体总量为2瓶；",null,0]
["使用III类射线设备的数量≥2台；",null,0]
["使用简单压力容器的数量≥3台；",null,0]
["实验室使用危险机加工装置的数量≥3台；",null,0]
["实验室使用加热设备数量≥6台；",null,0]
["实验室每月危险废物产生量≥100 L或kg；",null,0]
["高校自行规定的其他情况",null,0]
[]
["每项计分",null,"10分"]
["使用超过人体安全电压（36V）的实验；",null,{"$f":"B18*10","v":0}]
["涉及合成放热实验；",null,{"$f":"B19*10","v":0}]
["涉及压力实验；",null,0]
["产生易燃气体的实验；",null,0]
["涉及持续加热实验；",null,0]
["使用一般实验室自制设备；",null,0]
["存储易燃易爆化学品＜5kg或5L；",null,0]
["实验室存储一般危化品总量＜50kg或50L；",null,0]
["存储有毒、易燃气体1瓶；",null,0]
["存储或使用有活性的病原微生物，对人或其他动物感染性较弱，或感染后易治愈；",null,0]
["使用简单压力容器1~2台；",null,0]
["使用III类射线设备1台；",null,0]
["使用危险机加工装置1~2台；",null,0]
["使用一般机加工装置的数量≥5台；",null,0]
["实验室一般用电设备负载≥80%设计负载；",null,0]
["使用2、2M、1、1M类激光设备的数量≥3台；",null,0]
["实验室每月危险废物产生量为20~100 L或kg；",null,0]
["实验室使用加热设备数量3~5台；",null,0]
["实验室使用每1台明火设备；",null,0]
["高校自行规定的其他情况",null,0]
[]
["每项计分",null,"5分"]
["存储普通气体1~4瓶；",null,{"$f":"B40*5","v":0}]
["使用一般机加工装置1~4台；",null,{"$f":"B41*5","v":0}]
["使用2、2M、1、1M类激光设备1~2台；",null,0]
["实验室每月危险废物产生量＜20 L或kg；",null,0]
["实验室使用加热设备数量1~2台；",null,0]
["存放危险化学品的防爆冰箱或经防爆改造冰箱数量每1台；",null,0]
["实验室使用每1台快捷电热设备；",null,0]
["高校自行规定的其他情况",null,0]
["合计",null,{"$f":"SUM(C6:C47)","v":0}]
["根据等级自动计算级别",null,{"$f":"IF(C48>99,\"I\",IF(C48>74,\"II\",IF(C48>24,\"III\",\"IV\")))","v":"IV"},"级"]
["填写说明：\n1.根据实训室现状（含在建），符合以上任意一种情况的，请在相应位置输入“1”，不符合的则不需填。\n2.每填一项内容自动进行计分，最后等级自动判定：I级为100分，II级为75-99分，III级为25-74分，IV级为0-24分。"]